[Event "Early-Titled-Tuesday-Blitz-June-18-2024"]
[Site "Chess.com"]
[Date "2024.06.18"]
[Round "1"]
[White "manitodeplomo"]
[Black "NM_Antelacus"]
[Result "1-0"]
[WhiteElo "2629"]
[BlackElo "2296"]
[TimeControl "180+1"]
[EndTime "8:07:42 PDT"]
[Termination "manitodeplomo won by checkmate"]

1. d4 {[%clk 0:03:00.2]} 1... Nf6 {[%clk 0:02:59.1]} 2. c4 {[%clk 0:02:58.4]}
2... e6 {[%clk 0:02:59.3]} 3. Nf3 {[%clk 0:02:58.2]} 3... Bb4+ {[%clk
0:02:57.1]} 4. Bd2 {[%clk 0:02:55.7]} 4... Qe7 {[%clk 0:02:56.1]} 5. g3 {[%clk
0:02:53.6]} 5... b6 {[%clk 0:02:54]} 6. Bg2 {[%clk 0:02:49.2]} 6... Bb7 {[%clk
0:02:53.8]} 7. O-O {[%clk 0:02:49.5]} 7... Bxd2 {[%clk 0:02:53.2]} 8. Qxd2
{[%clk 0:02:49]} 8... O-O {[%clk 0:02:48.2]} 9. Nc3 {[%clk 0:02:46.1]} 9... Ne4
{[%clk 0:02:45.7]} 10. Nxe4 {[%clk 0:02:42]} 10... Bxe4 {[%clk 0:02:45.4]} 11.
d5 {[%clk 0:02:39.3]} 11... d6 {[%clk 0:02:23.7]} 12. dxe6 {[%clk 0:02:19]}
12... fxe6 {[%clk 0:02:21.8]} 13. Nd4 {[%clk 0:02:18.7]} 13... Bxg2 {[%clk
0:02:19.3]} 14. Kxg2 {[%clk 0:02:19.6]} 14... e5 {[%clk 0:02:15.4]} 15. Nf5
{[%clk 0:01:54.5]} 15... Qe6 {[%clk 0:01:57.8]} 16. e4 {[%clk 0:01:51.7]} 16...
Nd7 {[%clk 0:01:53.8]} 17. Qd5 {[%clk 0:01:46.7]} 17... Qxd5 {[%clk 0:01:47.3]}
18. cxd5 {[%clk 0:01:45.7]} 18... a5 {[%clk 0:01:40.8]} 19. b3 {[%clk
0:01:41.7]} 19... Nc5 {[%clk 0:01:39.8]} 20. f3 {[%clk 0:01:40.9]} 20... g6
{[%clk 0:01:39]} 21. Ne3 {[%clk 0:01:38.7]} 21... b5 {[%clk 0:01:33]} 22. Rac1
{[%clk 0:01:33.4]} 22... Rfb8 {[%clk 0:01:28.1]} 23. Rc2 {[%clk 0:01:24.5]}
23... b4 {[%clk 0:01:27.8]} 24. Rfc1 {[%clk 0:01:23.6]} 24... a4 {[%clk
0:01:26.9]} 25. Rxc5 {[%clk 0:01:17.5]} 25... dxc5 {[%clk 0:01:26]} 26. Rxc5
{[%clk 0:01:17.7]} 26... axb3 {[%clk 0:01:22]} 27. axb3 {[%clk 0:01:17.9]} 27...
Rb7 {[%clk 0:01:18.5]} 28. Nc4 {[%clk 0:01:14.5]} 28... Ra2+ {[%clk 0:01:18.3]}
29. Kh3 {[%clk 0:01:13.9]} 29... Rc2 {[%clk 0:01:18.3]} 30. Rc6 {[%clk
0:00:50.1]} 30... Rc3 {[%clk 0:01:09.6]} 31. Nxe5 {[%clk 0:00:49.9]} 31... Rxb3
{[%clk 0:01:09.6]} 32. Re6 {[%clk 0:00:21.6]} 32... Ra3 {[%clk 0:00:58.9]} 33.
f4 {[%clk 0:00:15.1]} 33... b3 {[%clk 0:00:58.2]} 34. Re8+ {[%clk 0:00:15.4]}
34... Kg7 {[%clk 0:00:57.8]} 35. Re7+ {[%clk 0:00:15]} 35... Kf8 {[%clk
0:00:57.7]} 36. Rf7+ {[%clk 0:00:14.6]} 36... Ke8 {[%clk 0:00:55.3]} 37. f5
{[%clk 0:00:09.3]} 37... gxf5 {[%clk 0:00:54.5]} 38. exf5 {[%clk 0:00:10.2]}
38... b2 {[%clk 0:00:45.6]} 39. f6 {[%clk 0:00:10]} 39... Re3 {[%clk 0:00:16.5]}
40. Re7+ {[%clk 0:00:09.7]} 40... Kf8 {[%clk 0:00:16]} 41. Nd7+ {[%clk
0:00:09.6]} 41... Kg8 {[%clk 0:00:15.7]} 42. f7+ {[%clk 0:00:09.8]} 42... Kg7
{[%clk 0:00:13.4]} 43. f8=Q+ {[%clk 0:00:09.9]} 43... Kg6 {[%clk 0:00:13.4]} 44.
Qf7+ {[%clk 0:00:09.2]} 44... Kg5 {[%clk 0:00:01.5]} 45. Qf6+ {[%clk 0:00:09.2]}
45... Kh5 {[%clk 0:00:01.1]} 46. Rxh7# {[%clk 0:00:08.7]} 1-0

[Event "Early-Titled-Tuesday-Blitz-June-18-2024"]
[Site "Chess.com"]
[Date "2024.06.18"]
[Round "1"]
[White "AlexanderKing"]
[Black "FairChess_on_YouTube"]
[Result "0-1"]
[WhiteElo "2543"]
[BlackElo "3122"]
[TimeControl "180+1"]
[EndTime "8:07:44 PDT"]
[Termination "FairChess_on_YouTube won on time"]

1. e4 {[%clk 0:02:59.6]} 1... c5 {[%clk 0:02:59.6]} 2. c3 {[%clk 0:02:59.6]}
2... d5 {[%clk 0:02:54.5]} 3. exd5 {[%clk 0:03:00.5]} 3... Qxd5 {[%clk
0:02:54.8]} 4. d4 {[%clk 0:03:00.6]} 4... Nf6 {[%clk 0:02:55.4]} 5. Nf3 {[%clk
0:03:00.6]} 5... e6 {[%clk 0:02:55.4]} 6. Be2 {[%clk 0:02:52.7]} 6... Be7 {[%clk
0:02:54.1]} 7. O-O {[%clk 0:02:50.7]} 7... O-O {[%clk 0:02:54.2]} 8. c4 {[%clk
0:02:37.3]} 8... Qc6 {[%clk 0:02:43.1]} 9. dxc5 {[%clk 0:02:14.1]} 9... Rd8
{[%clk 0:02:37.5]} 10. Qc2 {[%clk 0:02:09.9]} 10... Qe4 {[%clk 0:02:35.3]} 11.
Qxe4 {[%clk 0:02:01.9]} 11... Nxe4 {[%clk 0:02:36.2]} 12. Be3 {[%clk 0:01:52.6]}
12... Nc6 {[%clk 0:02:22.8]} 13. Nbd2 {[%clk 0:01:45.9]} 13... Nxc5 {[%clk
0:02:22.8]} 14. a3 {[%clk 0:01:36.2]} 14... a5 {[%clk 0:02:22.4]} 15. b3 {[%clk
0:01:31.5]} 15... b6 {[%clk 0:02:21]} 16. Rab1 {[%clk 0:01:30.9]} 16... Bb7
{[%clk 0:02:17.2]} 17. Rfd1 {[%clk 0:01:29.6]} 17... h6 {[%clk 0:02:16.4]} 18.
h3 {[%clk 0:01:29.3]} 18... Nd7 {[%clk 0:02:07.2]} 19. Ra1 {[%clk 0:00:55.7]}
19... Bf6 {[%clk 0:01:52.8]} 20. Rab1 {[%clk 0:00:55.2]} 20... Be7 {[%clk
0:01:49.3]} 21. Ra1 {[%clk 0:00:55.1]} 21... Bc5 {[%clk 0:01:48.6]} 22. Bxc5
{[%clk 0:00:53.8]} 22... Nxc5 {[%clk 0:01:48.5]} 23. Rab1 {[%clk 0:00:49.8]}
23... Nd4 {[%clk 0:01:47.6]} 24. Nxd4 {[%clk 0:00:49.2]} 24... Rxd4 {[%clk
0:01:48.5]} 25. Nf3 {[%clk 0:00:40]} 25... Rxd1+ {[%clk 0:01:46]} 26. Bxd1
{[%clk 0:00:34.9]} 26... Be4 {[%clk 0:01:40.2]} 27. Rc1 {[%clk 0:00:29.5]} 27...
Rd8 {[%clk 0:01:31.9]} 28. Kf1 {[%clk 0:00:16.6]} 28... Nd3 {[%clk 0:01:23]} 29.
Ra1 {[%clk 0:00:12.3]} 29... Nf4 {[%clk 0:01:22.9]} 30. h4 {[%clk 0:00:05.2]}
30... g5 {[%clk 0:01:22]} 31. hxg5 {[%clk 0:00:05.1]} 31... hxg5 {[%clk
0:01:22.9]} 32. Nxg5 {[%clk 0:00:05.3]} 32... Bxg2+ {[%clk 0:01:22.7]} 33. Kg1
{[%clk 0:00:05.3]} 33... Kg7 {[%clk 0:01:18.4]} 34. Bf3 {[%clk 0:00:04.4]} 34...
Bxf3 {[%clk 0:01:13.5]} 35. Nxf3 {[%clk 0:00:05.3]} 35... Rd3 {[%clk 0:01:13.6]}
36. Ne5 {[%clk 0:00:01.6]} 36... Rxb3 {[%clk 0:01:13.4]} 37. a4 {[%clk
0:00:01.2]} 37... Kf6 {[%clk 0:01:10.6]} 38. Ng4+ {[%clk 0:00:01.9]} 38... Kf5
{[%clk 0:01:08]} 39. Ne3+ {[%clk 0:00:02.8]} 39... Ke4 {[%clk 0:01:08.3]} 40.
Rd1 {[%clk 0:00:01.5]} 40... Kf3 {[%clk 0:01:06.8]} 41. Nf1 {[%clk 0:00:01.2]}
41... Ne2+ {[%clk 0:01:05.9]} 42. Kh2 {[%clk 0:00:01.8]} 42... Kxf2 {[%clk
0:01:06]} 43. Nd2 {[%clk 0:00:02.1]} 43... Rd3 {[%clk 0:01:02.3]} 44. Rf1+
{[%clk 0:00:02.7]} 44... Ke3 {[%clk 0:01:02.7]} 45. Nb1 {[%clk 0:00:03.3]} 45...
f5 {[%clk 0:01:01.2]} 46. Kg2 {[%clk 0:00:03.4]} 46... Nf4+ {[%clk 0:00:54.7]}
47. Kg3 {[%clk 0:00:03.7]} 47... Ke4+ {[%clk 0:00:54.1]} 48. Kh2 {[%clk
0:00:02]} 48... e5 {[%clk 0:00:50.8]} 49. Re1+ {[%clk 0:00:02]} 49... Kd4 {[%clk
0:00:51.1]} 50. Rc1 {[%clk 0:00:02.2]} 50... Rh3+ {[%clk 0:00:50.2]} 51. Kg1
{[%clk 0:00:02.2]} 51... Ne2+ {[%clk 0:00:51.1]} 52. Kg2 {[%clk 0:00:01.6]}
52... Nxc1 {[%clk 0:00:52]} 53. Kxh3 {[%clk 0:00:01.7]} 53... Kxc4 {[%clk
0:00:51.8]} 54. Kh4 {[%clk 0:00:01]} 54... Kb4 {[%clk 0:00:49.2]} 55. Kg5 {[%clk
0:00:01]} 55... Kxa4 {[%clk 0:00:49.8]} 56. Kxf5 {[%clk 0:00:01.6]} 56... Kb3
{[%clk 0:00:49.6]} 57. Kxe5 {[%clk 0:00:02.5]} 57... Kb2 {[%clk 0:00:43]} 58.
Nd2 {[%clk 0:00:01.8]} 58... b5 {[%clk 0:00:43.6]} 59. Kd4 {[%clk 0:00:01.9]}
59... Nb3+ {[%clk 0:00:43.1]} 0-1

[Event "Early-Titled-Tuesday-Blitz-June-18-2024"]
[Site "Chess.com"]
[Date "2024.06.18"]
[Round "1"]
[White "Flawless_Fighter"]
[Black "jup1978"]
[Result "1-0"]
[WhiteElo "2803"]
[BlackElo "2461"]
[TimeControl "180+1"]
[EndTime "8:07:47 PDT"]
[Termination "Flawless_Fighter won by resignation"]

1. Nf3 {[%clk 0:03:00.9]} 1... d5 {[%clk 0:02:59.9]} 2. g3 {[%clk 0:02:59.7]}
2... e6 {[%clk 0:03:00.3]} 3. Bg2 {[%clk 0:03:00.2]} 3... Nf6 {[%clk 0:03:00.9]}
4. O-O {[%clk 0:03:00.7]} 4... Be7 {[%clk 0:03:01.6]} 5. d4 {[%clk 0:03:01]}
5... O-O {[%clk 0:03:02.2]} 6. c4 {[%clk 0:02:57]} 6... c6 {[%clk 0:03:02.6]} 7.
Qc2 {[%clk 0:02:55.1]} 7... b6 {[%clk 0:03:03.1]} 8. Nbd2 {[%clk 0:02:52.7]}
8... c5 {[%clk 0:03:03.7]} 9. Rd1 {[%clk 0:02:48.2]} 9... Bb7 {[%clk 0:03:01.2]}
10. b3 {[%clk 0:02:44.4]} 10... Nbd7 {[%clk 0:03:00]} 11. Bb2 {[%clk 0:02:44.8]}
11... dxc4 {[%clk 0:03:00.1]} 12. Nxc4 {[%clk 0:02:44.4]} 12... cxd4 {[%clk
0:02:59.3]} 13. Nxd4 {[%clk 0:02:41.4]} 13... Bxg2 {[%clk 0:03:00.2]} 14. Kxg2
{[%clk 0:02:41.5]} 14... Rc8 {[%clk 0:03:00.8]} 15. Qd3 {[%clk 0:02:36]} 15...
Nc5 {[%clk 0:02:53.5]} 16. Qf3 {[%clk 0:02:34.2]} 16... Qd5 {[%clk 0:02:50.9]}
17. Nb5 {[%clk 0:02:26.1]} 17... Qxf3+ {[%clk 0:02:47.2]} 18. exf3 {[%clk
0:02:25.5]} 18... a6 {[%clk 0:02:46.8]} 19. Nbd6 {[%clk 0:02:19.9]} 19... Rb8
{[%clk 0:02:46.9]} 20. Ne5 {[%clk 0:02:07.4]} 20... Bxd6 {[%clk 0:02:22.3]} 21.
Rxd6 {[%clk 0:02:08.3]} 21... Rfd8 {[%clk 0:02:15.3]} 22. Rad1 {[%clk
0:02:03.5]} 22... Nd5 {[%clk 0:02:11.6]} 23. Rxd8+ {[%clk 0:01:54.8]} 23... Rxd8
{[%clk 0:02:12.5]} 24. Rd4 {[%clk 0:01:33.8]} 24... f6 {[%clk 0:02:09.2]} 25.
Nc4 {[%clk 0:01:32.2]} 25... b5 {[%clk 0:02:05.3]} 26. Nb6 {[%clk 0:01:25.2]}
26... Kf7 {[%clk 0:01:58]} 27. Nxd5 {[%clk 0:01:24.6]} 27... Rxd5 {[%clk
0:01:58.9]} 28. Rxd5 {[%clk 0:01:24.6]} 28... exd5 {[%clk 0:01:59.8]} 29. Kf1
{[%clk 0:01:20.5]} 29... Nd3 {[%clk 0:01:59.7]} 30. Bc3 {[%clk 0:01:11.1]} 30...
Nc1 {[%clk 0:01:58.3]} 31. Bd2 {[%clk 0:01:09.6]} 31... Nxa2 {[%clk 0:01:55.7]}
32. b4 {[%clk 0:00:59.1]} 32... Ke6 {[%clk 0:01:53.7]} 33. Ke2 {[%clk
0:00:59.5]} 33... d4 {[%clk 0:01:53.9]} 34. Kd3 {[%clk 0:00:59.7]} 34... Kd5
{[%clk 0:01:54.4]} 35. f4 {[%clk 0:00:54.5]} 35... f5 {[%clk 0:01:52.9]} 36. f3
{[%clk 0:00:52.4]} 36... h6 {[%clk 0:01:49.5]} 37. g4 {[%clk 0:00:51.1]} 37...
g6 {[%clk 0:01:49.3]} 38. h4 {[%clk 0:00:47.4]} 38... h5 {[%clk 0:01:47.5]} 39.
gxh5 {[%clk 0:00:41.4]} 39... gxh5 {[%clk 0:01:46.6]} 40. Be1 {[%clk 0:00:41.1]}
40... Nc1+ {[%clk 0:01:39.7]} 41. Kd2 {[%clk 0:00:33]} 41... Nb3+ {[%clk
0:01:38.3]} 42. Kd3 {[%clk 0:00:33.5]} 42... a5 {[%clk 0:01:19.7]} 43. bxa5
{[%clk 0:00:33.5]} 43... Kc5 {[%clk 0:01:20.6]} 44. Kc2 {[%clk 0:00:18.1]} 44...
Kc4 {[%clk 0:01:20.1]} 45. a6 {[%clk 0:00:17]} 45... d3+ {[%clk 0:01:21]} 46.
Kd1 {[%clk 0:00:11.7]} 46... Nd4 {[%clk 0:00:47.3]} 47. a7 {[%clk 0:00:11.8]}
47... b4 {[%clk 0:00:47.8]} 48. a8=Q {[%clk 0:00:12]} 48... b3 {[%clk
0:00:48.7]} 49. Qa4+ {[%clk 0:00:11.2]} 49... Kd5 {[%clk 0:00:48.4]} 50. Bc3
{[%clk 0:00:08.5]} 50... Nxf3 {[%clk 0:00:47.5]} 51. Qxb3+ {[%clk 0:00:08.2]}
51... Ke4 {[%clk 0:00:48.1]} 52. Qc4+ {[%clk 0:00:07.5]} 52... Ke3 {[%clk
0:00:48.4]} 53. Be5 {[%clk 0:00:05.6]} 53... d2 {[%clk 0:00:46.6]} 54. Qc3+
{[%clk 0:00:04.9]} 54... Kf2 {[%clk 0:00:46.6]} 55. Qd3 {[%clk 0:00:04.6]} 55...
Kg3 {[%clk 0:00:45.1]} 56. Qxf5 {[%clk 0:00:04.7]} 56... Nxh4 {[%clk 0:00:43.1]}
57. Qxh5 {[%clk 0:00:04.6]} 57... Ng2 {[%clk 0:00:41.4]} 58. Qg5+ {[%clk
0:00:04.8]} 58... Kf3 {[%clk 0:00:40.2]} 59. Qxg2+ {[%clk 0:00:05.3]} 59... Kxg2
{[%clk 0:00:40.2]} 60. f5 {[%clk 0:00:05.8]} 1-0

[Event "Early-Titled-Tuesday-Blitz-June-18-2024"]
[Site "Chess.com"]
[Date "2024.06.18"]
[Round "1"]
[White "mistrzemi"]
[Black "suyu28"]
[Result "0-1"]
[WhiteElo "2423"]
[BlackElo "2759"]
[TimeControl "180+1"]
[EndTime "8:07:47 PDT"]
[Termination "suyu28 won by resignation"]

1. e4 {[%clk 0:03:00.6]} 1... c5 {[%clk 0:02:54.8]} 2. Nf3 {[%clk 0:02:58]} 2...
d6 {[%clk 0:02:54.1]} 3. d4 {[%clk 0:02:57.8]} 3... cxd4 {[%clk 0:02:54]} 4.
Nxd4 {[%clk 0:02:58.7]} 4... Nf6 {[%clk 0:02:53.2]} 5. Nc3 {[%clk 0:02:59]} 5...
a6 {[%clk 0:02:52.9]} 6. Nb3 {[%clk 0:02:53.7]} 6... Nc6 {[%clk 0:02:50.2]} 7.
Be2 {[%clk 0:02:53.3]} 7... e6 {[%clk 0:02:39.5]} 8. O-O {[%clk 0:02:53.2]} 8...
Be7 {[%clk 0:02:40.1]} 9. Be3 {[%clk 0:02:52.3]} 9... b5 {[%clk 0:02:39.8]} 10.
a3 {[%clk 0:02:51.7]} 10... Bb7 {[%clk 0:02:39.2]} 11. f4 {[%clk 0:02:45.1]}
11... Qc7 {[%clk 0:02:37.7]} 12. Bf3 {[%clk 0:02:43.3]} 12... O-O {[%clk
0:02:36.9]} 13. Qe1 {[%clk 0:02:41.2]} 13... Rac8 {[%clk 0:02:35.5]} 14. Rd1
{[%clk 0:02:37.1]} 14... Rfd8 {[%clk 0:02:34.2]} 15. Qg3 {[%clk 0:02:35.1]}
15... b4 {[%clk 0:02:26.4]} 16. axb4 {[%clk 0:02:32.3]} 16... Nxb4 {[%clk
0:02:27.3]} 17. Rf2 {[%clk 0:02:23.3]} 17... d5 {[%clk 0:02:23.1]} 18. e5 {[%clk
0:02:07]} 18... Ne4 {[%clk 0:02:13.4]} 19. Bxe4 {[%clk 0:01:56.2]} 19... dxe4
{[%clk 0:02:13.9]} 20. Rdf1 {[%clk 0:01:54.3]} 20... Nd5 {[%clk 0:01:55.6]} 21.
Nxd5 {[%clk 0:01:52.9]} 21... Bxd5 {[%clk 0:01:53.8]} 22. Nd4 {[%clk 0:01:53]}
22... Bf8 {[%clk 0:01:37.5]} 23. f5 {[%clk 0:01:51.8]} 23... Bc4 {[%clk
0:01:31.1]} 24. Re1 {[%clk 0:01:46.8]} 24... Bc5 {[%clk 0:01:26.2]} 25. f6
{[%clk 0:01:40.8]} 25... g6 {[%clk 0:01:23.6]} 26. Qh4 {[%clk 0:01:36.3]} 26...
Qxe5 {[%clk 0:01:11.3]} 27. c3 {[%clk 0:01:23.3]} 27... Rd5 {[%clk 0:01:10]} 28.
Nc6 {[%clk 0:01:09.7]} 28... Rxc6 {[%clk 0:00:57.5]} 29. Bxc5 {[%clk 0:01:09.3]}
29... Qh5 {[%clk 0:00:46.7]} 30. Qxh5 {[%clk 0:01:03.7]} 30... Rxh5 {[%clk
0:00:43.1]} 31. b4 {[%clk 0:01:00.6]} 31... Bd3 {[%clk 0:00:40.6]} 32. Rd2
{[%clk 0:00:59.4]} 32... h6 {[%clk 0:00:36.2]} 33. Ra1 {[%clk 0:00:42]} 33...
Kh7 {[%clk 0:00:29.9]} 34. h3 {[%clk 0:00:33.4]} 34... Rhxc5 {[%clk 0:00:28.5]}
35. bxc5 {[%clk 0:00:33.2]} 35... Rxc5 {[%clk 0:00:29.4]} 36. Kf2 {[%clk
0:00:32.4]} 36... Rxc3 {[%clk 0:00:28.1]} 37. Ke3 {[%clk 0:00:30.2]} 37... g5
{[%clk 0:00:27.3]} 38. Kd4 {[%clk 0:00:28.3]} 38... Rc4+ {[%clk 0:00:26.3]} 39.
Ke5 {[%clk 0:00:27.8]} 39... Kg6 {[%clk 0:00:26.3]} 40. Rda2 {[%clk 0:00:09.8]}
40... Rc5+ {[%clk 0:00:22.3]} 41. Kd4 {[%clk 0:00:10.1]} 41... Rd5+ {[%clk
0:00:21.6]} 42. Ke3 {[%clk 0:00:10.5]} 42... Kxf6 {[%clk 0:00:22]} 43. g4 {[%clk
0:00:10.1]} 43... Kg6 {[%clk 0:00:19.8]} 44. Ra5 {[%clk 0:00:08.9]} 44... Rxa5
{[%clk 0:00:18.8]} 45. Rxa5 {[%clk 0:00:08.9]} 45... f5 {[%clk 0:00:19.7]} 46.
gxf5+ {[%clk 0:00:08.3]} 46... exf5 {[%clk 0:00:20.6]} 47. Kd4 {[%clk
0:00:07.1]} 47... f4 {[%clk 0:00:19.2]} 48. Ra2 {[%clk 0:00:07]} 48... Kh5
{[%clk 0:00:18]} 0-1

[Event "Early-Titled-Tuesday-Blitz-June-18-2024"]
[Site "Chess.com"]
[Date "2024.06.18"]
[Round "1"]
[White "bubeliang"]
[Black "KinKaiser"]
[Result "1-0"]
[WhiteElo "2816"]
[BlackElo "2465"]
[TimeControl "180+1"]
[EndTime "8:07:53 PDT"]
[Termination "bubeliang won by resignation"]

1. e4 {[%clk 0:02:58.4]} 1... c5 {[%clk 0:02:58.1]} 2. c3 {[%clk 0:02:58.1]}
2... e6 {[%clk 0:02:56.7]} 3. d4 {[%clk 0:02:57.9]} 3... cxd4 {[%clk 0:02:55]}
4. cxd4 {[%clk 0:02:58.8]} 4... d5 {[%clk 0:02:55.7]} 5. exd5 {[%clk 0:02:58.7]}
5... exd5 {[%clk 0:02:53.2]} 6. Nf3 {[%clk 0:02:57.3]} 6... Nc6 {[%clk
0:02:48.6]} 7. Bd3 {[%clk 0:02:56.5]} 7... Bd6 {[%clk 0:02:42]} 8. O-O {[%clk
0:02:55]} 8... Nge7 {[%clk 0:02:37]} 9. Nc3 {[%clk 0:02:53.1]} 9... f6 {[%clk
0:02:33.8]} 10. Qb3 {[%clk 0:02:49.5]} 10... Bc7 {[%clk 0:02:28.8]} 11. Re1
{[%clk 0:02:45.5]} 11... O-O {[%clk 0:02:27.7]} 12. Nxd5 {[%clk 0:01:58.4]}
12... Nxd5 {[%clk 0:02:24.9]} 13. Bc4 {[%clk 0:01:58.7]} 13... Ne7 {[%clk
0:02:23.6]} 14. Rxe7 {[%clk 0:01:53.9]} 14... Qxe7 {[%clk 0:02:24.5]} 15. Bxd5+
{[%clk 0:01:54.5]} 15... Kh8 {[%clk 0:02:24.8]} 16. Be3 {[%clk 0:01:55.1]} 16...
Bg4 {[%clk 0:02:22.1]} 17. Qxb7 {[%clk 0:01:40.7]} 17... Rab8 {[%clk 0:02:18.5]}
18. Qc6 {[%clk 0:01:27.6]} 18... Rb6 {[%clk 0:02:12.4]} 19. Qc2 {[%clk 0:01:22]}
19... Qd6 {[%clk 0:02:08.5]} 20. Rc1 {[%clk 0:01:14.4]} 20... Bxf3 {[%clk
0:02:06.8]} 21. Bxf3 {[%clk 0:01:14.1]} 21... Qxh2+ {[%clk 0:02:06.7]} 22. Kf1
{[%clk 0:01:14.7]} 22... Bf4 {[%clk 0:02:05.1]} 23. Qc8 {[%clk 0:00:59.9]} 23...
Rb8 {[%clk 0:02:02]} 24. Qc2 {[%clk 0:00:53.5]} 24... Bxe3 {[%clk 0:01:59.7]}
25. fxe3 {[%clk 0:00:54.4]} 25... h6 {[%clk 0:01:56.3]} 26. b3 {[%clk
0:00:52.7]} 26... f5 {[%clk 0:01:52.2]} 27. Qd2 {[%clk 0:00:49.2]} 27... Qd6
{[%clk 0:01:45.6]} 28. Rc5 {[%clk 0:00:45.4]} 28... Rbd8 {[%clk 0:01:41.8]} 29.
Qc3 {[%clk 0:00:42.6]} 29... f4 {[%clk 0:01:38.4]} 30. Rc6 {[%clk 0:00:29.9]}
30... Qd7 {[%clk 0:01:30.5]} 31. d5 {[%clk 0:00:29.3]} 31... fxe3 {[%clk
0:01:29.7]} 32. Rxh6+ {[%clk 0:00:28.9]} 32... Kg8 {[%clk 0:01:27.1]} 33. Re6
{[%clk 0:00:26.1]} 33... Qxd5 {[%clk 0:01:21.2]} 34. Rxe3 {[%clk 0:00:25.4]}
34... Qd1+ {[%clk 0:01:17.8]} 35. Re1 {[%clk 0:00:19]} 35... Qd3+ {[%clk
0:01:14.9]} 36. Qxd3 {[%clk 0:00:19.5]} 36... Rxd3 {[%clk 0:01:15.7]} 37. Re7
{[%clk 0:00:20.4]} 37... Rd2 {[%clk 0:01:14.8]} 38. Rxa7 {[%clk 0:00:19.4]}
38... Rc8 {[%clk 0:01:14]} 39. Kg1 {[%clk 0:00:17.5]} 39... Rc3 {[%clk 0:01:12]}
40. b4 {[%clk 0:00:14.9]} 40... Rb2 {[%clk 0:01:07.5]} 41. a3 {[%clk 0:00:13.6]}
41... Kh7 {[%clk 0:01:05.8]} 42. Ra5 {[%clk 0:00:12.8]} 42... g6 {[%clk
0:01:04.3]} 43. b5 {[%clk 0:00:12.5]} 43... Rc1+ {[%clk 0:01:01.2]} 44. Kh2
{[%clk 0:00:12.5]} 44... Rc3 {[%clk 0:01:02.1]} 45. Kg3 {[%clk 0:00:12.1]} 45...
Kh6 {[%clk 0:01:01.9]} 46. a4 {[%clk 0:00:11.4]} 46... Rc5 {[%clk 0:00:59.5]}
47. Ra6 {[%clk 0:00:09.9]} 47... Rb4 {[%clk 0:00:57.1]} 48. b6 {[%clk 0:00:08]}
48... Kg5 {[%clk 0:00:49.9]} 49. b7 {[%clk 0:00:05.3]} 49... Kf5 {[%clk
0:00:46.2]} 50. Ra8 {[%clk 0:00:04.3]} 50... Rcc4 {[%clk 0:00:38.7]} 51. b8=Q
{[%clk 0:00:04.1]} 51... Rxb8 {[%clk 0:00:38.8]} 52. Rxb8 {[%clk 0:00:05]} 52...
Rxa4 {[%clk 0:00:39.1]} 53. Rb5+ {[%clk 0:00:05.3]} 53... Kf6 {[%clk 0:00:39.1]}
54. Kf2 {[%clk 0:00:05]} 54... Ra3 {[%clk 0:00:38.9]} 55. Be4 {[%clk 0:00:04.9]}
55... g5 {[%clk 0:00:38.3]} 56. Rf5+ {[%clk 0:00:04.6]} 56... Ke6 {[%clk
0:00:38.2]} 57. Rxg5 {[%clk 0:00:05.1]} 57... Ra4 {[%clk 0:00:39]} 58. Bf3
{[%clk 0:00:04.9]} 58... Kf6 {[%clk 0:00:39.9]} 59. Rc5 {[%clk 0:00:05.1]} 59...
Ra2+ {[%clk 0:00:40.6]} 60. Kg3 {[%clk 0:00:05.4]} 60... Rc2 {[%clk 0:00:40.8]}
61. Rxc2 {[%clk 0:00:05.2]} 1-0

[Event "Early-Titled-Tuesday-Blitz-June-18-2024"]
[Site "Chess.com"]
[Date "2024.06.18"]
[Round "1"]
[White "ZOQTE"]
[Black "GP9isback23"]
[Result "0-1"]
[WhiteElo "2371"]
[BlackElo "2686"]
[TimeControl "180+1"]
[EndTime "8:07:54 PDT"]
[Termination "GP9isback23 won on time"]

1. Nf3 {[%clk 0:02:58.8]} 1... Nf6 {[%clk 0:02:59.6]} 2. g3 {[%clk 0:02:58.2]}
2... b6 {[%clk 0:03:00]} 3. Bg2 {[%clk 0:02:58.1]} 3... Bb7 {[%clk 0:03:00.9]}
4. O-O {[%clk 0:02:58.3]} 4... e6 {[%clk 0:03:01]} 5. b3 {[%clk 0:02:58.5]} 5...
Be7 {[%clk 0:03:01]} 6. Bb2 {[%clk 0:02:59.1]} 6... O-O {[%clk 0:03:01.3]} 7. c4
{[%clk 0:02:59.8]} 7... d5 {[%clk 0:03:01.6]} 8. Ne5 {[%clk 0:02:58.8]} 8...
Nbd7 {[%clk 0:03:02]} 9. Nxd7 {[%clk 0:02:53.3]} 9... Qxd7 {[%clk 0:03:02.9]}
10. d4 {[%clk 0:02:53.1]} 10... Rfd8 {[%clk 0:03:00.5]} 11. Nd2 {[%clk
0:02:52.3]} 11... c5 {[%clk 0:03:00.5]} 12. cxd5 {[%clk 0:02:46.6]} 12... Bxd5
{[%clk 0:02:53.6]} 13. Nf3 {[%clk 0:02:39.7]} 13... Qb7 {[%clk 0:02:50.5]} 14.
e3 {[%clk 0:02:35.4]} 14... Rac8 {[%clk 0:02:18.7]} 15. Qe2 {[%clk 0:02:30.9]}
15... c4 {[%clk 0:02:11.5]} 16. Nh4 {[%clk 0:02:19]} 16... Bxg2 {[%clk
0:02:05.7]} 17. Nxg2 {[%clk 0:02:19.9]} 17... c3 {[%clk 0:02:06]} 18. Bc1 {[%clk
0:02:16.1]} 18... b5 {[%clk 0:02:06.5]} 19. Nf4 {[%clk 0:02:05.9]} 19... b4
{[%clk 0:02:05.2]} 20. f3 {[%clk 0:02:00.8]} 20... a5 {[%clk 0:02:03.2]} 21. Rd1
{[%clk 0:01:48.9]} 21... Qb6 {[%clk 0:02:02.3]} 22. Qf2 {[%clk 0:01:41.3]} 22...
e5 {[%clk 0:01:55.9]} 23. Ne2 {[%clk 0:01:39.9]} 23... exd4 {[%clk 0:01:53.4]}
24. exd4 {[%clk 0:01:33.6]} 24... Rd7 {[%clk 0:01:38.1]} 25. Bg5 {[%clk
0:01:24.4]} 25... Rcd8 {[%clk 0:01:37]} 26. Rd3 {[%clk 0:01:10.6]} 26... h6
{[%clk 0:01:34.9]} 27. Bxf6 {[%clk 0:01:07.9]} 27... Bxf6 {[%clk 0:01:35.8]} 28.
Rad1 {[%clk 0:01:07.5]} 28... Rd5 {[%clk 0:01:33.9]} 29. Kg2 {[%clk 0:01:06.4]}
29... h5 {[%clk 0:01:22.2]} 30. Nf4 {[%clk 0:01:05.7]} 30... Rxd4 {[%clk
0:01:17.9]} 31. Nxh5 {[%clk 0:00:34.7]} 31... Rxd3 {[%clk 0:01:07.2]} 32. Qxb6
{[%clk 0:00:32.6]} 32... Rxd1 {[%clk 0:01:05.5]} 33. Nxf6+ {[%clk 0:00:31]}
33... gxf6 {[%clk 0:01:06.4]} 34. Qxf6 {[%clk 0:00:30.2]} 34... R1d6 {[%clk
0:00:34.8]} 35. Qg5+ {[%clk 0:00:29]} 35... Kf8 {[%clk 0:00:35.4]} 36. Qc5
{[%clk 0:00:28.3]} 36... Ke8 {[%clk 0:00:35.1]} 37. Kh3 {[%clk 0:00:25.9]} 37...
Kd7 {[%clk 0:00:29.2]} 38. Qb5+ {[%clk 0:00:19.1]} 38... Rc6 {[%clk 0:00:29.2]}
39. Qd5+ {[%clk 0:00:14.2]} 39... Rd6 {[%clk 0:00:27.7]} 40. Qxf7+ {[%clk
0:00:13.7]} 40... Kc8 {[%clk 0:00:23.9]} 41. Qc4+ {[%clk 0:00:11.7]} 41... Kb7
{[%clk 0:00:20.6]} 42. Qb5+ {[%clk 0:00:10.7]} 42... Rb6 {[%clk 0:00:21.1]} 43.
Qc4 {[%clk 0:00:05.7]} 43... Rc8 {[%clk 0:00:20.3]} 44. Qe4+ {[%clk 0:00:04.9]}
44... Rbc6 {[%clk 0:00:17.6]} 45. Qc2 {[%clk 0:00:01.4]} 45... Rd8 {[%clk
0:00:16.9]} 46. Qh7+ {[%clk 0:00:02]} 46... Kb6 {[%clk 0:00:16.7]} 47. Qe4
{[%clk 0:00:01.4]} 47... c2 {[%clk 0:00:14.9]} 48. Qe3+ {[%clk 0:00:01.5]} 48...
Kb7 {[%clk 0:00:12.6]} 49. Qe7+ {[%clk 0:00:01.3]} 49... Rc7 {[%clk 0:00:10.4]}
50. Qe4+ {[%clk 0:00:01.4]} 50... Kb8 {[%clk 0:00:09.6]} 0-1